[Event "US Masters 2022"]
[Site "Charlotte"]
[Date "2022.11.26"]
[Round "6.9"]
[White "Mandizha, Farai"]
[Black "Cruz, Cristhian"]
[Result "1/2-1/2"]
[ECO "D37"]
[WhiteElo "2359"]
[BlackElo "2552"]
[Annotator "TA"]
[PlyCount "66"]
[EventDate "2022.11.23"]
[EventType "swiss"]
[EventCountry "USA"]
[SourceTitle "playchess.com"]
[Source "ChessBase"]
[SourceQuality "1"]
[TimeControl "5400+30"]

{[%evp 17,66,3,8,0,0,0,0,-8,-2,0,48,15,14,0,0,-33,-37,-143,-137,-145,-142,-130,-136,-137,-137,-100,-130,-126,-111,-106,-89,-99,-90,-97,-101,-91,-52,-60,-58,-52,-50,-80,-62,-81,-18,-47,-33,-62,23,20,38]} 1. d4 {[%emt 0:10:13]} d5 {[%emt 0:01:45]} 2. c4 {[%emt 0:00:46]} e6 {[%emt 0:01:12]} 3. Nc3 {[%emt 0:02:00]} Nf6 {[%emt 0:02:33]} 4. Nf3 {[%emt 0:00:36]} Be7 {[%emt 0:03:11]} 5. Bf4 {[%emt 0:01:37]} O-O {[%emt 0:00:53]} 6. e3 {[%emt 0:00:05]} c5 {[%emt 0:02:58]} 7. dxc5 {[%emt 0:01:29]} Bxc5 {[%emt 0:00:11]} 8. a3 {[%emt 0:02:46]} Nc6 {[%emt 0:03:13]} 9. b4 {[%emt 0:04:09]} Be7 {[%emt 0:03:05]} 10. Qb3 {[%emt 0:06:36] D37: Queen's Gambit Declined: 5 Bf4.} (10. cxd5 {simplifies} Nxd5 11. Nxd5 Qxd5 12. Qxd5 exd5 13. Bd3) 10... a5 {[%emt 0:10:06][%cal Ra5b4,Ba7a5,Ba5a4][%mdl 32]} 11. b5 {[%emt 0:00:29]} a4 {[%emt 0:03:27]} 12. Qb2 {[%emt 0:03:35] [#]} Na5 $146 {[%emt 0:05:06] ...Nb3 is the strong threat.} ({Predecessor:} 12... Qb6 13. Qc2 d4 14. bxc6 dxc3 15. Be5 Qb2 16. Qxc3 Qxc3+ 17. Bxc3 bxc6 18. Bd3 Nd7 {0-1 (51) Meneghetti,J (1756)-Beckett,P (2025) ICCF email 2016}) 13. Rd1 {[%emt 0:00:21]} Qe8 {[%emt 0:21:38]} (13... Nb3 $11 {feels stronger.}) 14. cxd5 {[%emt 0:01:55]} (14. Be5 {seems wilder.} dxc4 15. Nxa4 Nb3 16. Nc3) 14... exd5 {[%emt 0:10:04]} 15. Rd4 {[%emt 0:02:23]} ({Of course not} 15. Nxd5 Nxd5 16. Rxd5 Be6 $15) 15... Be6 {[%emt 0:03:39]} 16. Rxa4 {[%emt 0:01:28]} Nd7 {[%emt 0:04:43][%cal Bf6d7,Bd7b6,Bb6c4,Bc4a3][%mdl 32]} 17. Bg5 {[%emt 0:09:15] [#]} (17. Rd4 $15) 17... f6 $1 $17 {[%emt 0:02:14]} 18. Bf4 {[%emt 0:02:29] [#]} Nb6 $1 $36 {[%emt 0:02:14][%mdl 2048] Black has strong initiative.} 19. Rd4 {[%emt 0:05:03]} Nac4 {[%emt 0:02:45]} 20. Bxc4 {[%emt 0:00:10]} Nxc4 {[%emt 0:00:09]} 21. Qb1 {[%emt 0:01:04]} Nxa3 {[%emt 0:05:08]} ({Reject} 21... Rxa3 $6 22. Nxd5 Bxd5 23. Rxd5 $11) 22. Qd3 {[%emt 0:00:26]} Bc5 {[%emt 0:02:10] aiming for ...g5.} 23. O-O {[%emt 0:03:28]} Bxd4 {[%emt 0:00:25]} 24. Nxd4 {[%emt 0:00:02]} Nc4 {[%emt 0:00:21]} 25. Nxe6 {[%emt 0:04:36]} Qxe6 {[%emt 0:00:02]} 26. Nxd5 {[%emt 0:00:02]} Rfd8 {[%emt 0:04:14]} 27. e4 {[%emt 0:00:15]} Rac8 {[%emt 0:01:38][%cal Of6f5]} 28. Bc7 {[%emt 0:05:25] Inhibits f5.} Ne5 {[%emt 0:02:13]} 29. Qg3 {[%emt 0:02:07]} Re8 {[%emt 0:00:52]} 30. h3 {[%emt 0:04:50]} Kh8 {[%emt 0:00:11]} (30... f5 $17 31. Qf4 Nc4 32. Qxf5 Qxe4 33. Qxe4 Rxe4) 31. b6 {[%emt 0:01:10]} Ng6 {[%emt 0:01:14]} 32. Nc3 {[%emt 0:02:43]} Ra8 {[%emt 0:00:21]} (32... Qc4 $15) 33. Nb5 $1 $11 {[%emt 0:00:19]} Qxe4 {[%emt 0:03:05] And White is the lucky defender.   Weighted Error Value: White=0.14 (very precise) /Black=0.14 (very precise)} 1/2-1/2

[Event "US Masters 2022"]
[Site "Charlotte"]
[Date "2022.11.26"]
[Round "6.10"]
[White "Macieja, Bartlomiej"]
[Black "Kavutskiy, Konstantin"]
[Result "1-0"]
[ECO "E90"]
[WhiteElo "2514"]
[BlackElo "2383"]
[Annotator "TA"]
[PlyCount "69"]
[EventDate "2022.11.23"]
[EventType "swiss"]
[EventCountry "USA"]
[SourceTitle "playchess.com"]
[Source "ChessBase"]
[SourceQuality "1"]
[TimeControl "5400+30"]

{[%evp 13,69,28,39,32,35,16,19,12,49,29,28,43,71,65,92,90,87,69,80,56,102,76,45,-38,59,58,117,102,117,119,175,170,183,181,182,171,179,180,175,158,158,172,191,195,245,227,318,308,316,316,357,349,427,431,480,450,483,459]} 1. d4 {[%emt 0:01:16]} Nf6 {[%emt 0:09:59]} 2. c4 {[%emt 0:00:03]} g6 {[%emt 0:00:04]} 3. Nc3 {[%emt 0:00:02]} Bg7 {[%emt 0:00:05]} 4. e4 {[%emt 0:00:03]} d6 {[%emt 0:00:06]} 5. Nf3 {[%emt 0:00:03]} O-O {[%emt 0:00:06]} 6. h3 {[%emt 0:00:03]} e5 {[%emt 0:00:19]} 7. d5 {[%emt 0:00:02]} Nh5 {[%emt 0:00:07]} 8. g3 {[%emt 0:00:39] E90: King's Indian: Classical: Early deviations and 6 h3.} Na6 {[%emt 0:00:57]} 9. Nh2 {[%emt 0:00:55]} Nc5 {[%emt 0:01:05]} 10. Be3 {[%emt 0:13:00] [#] The position is equal.} Nf6 $146 {[%emt 0:01:04]} ({Predecessor:} 10... a5 11. Be2 Nf6 12. Bf3 Ne8 13. g4 f5 14. gxf5 gxf5 15. exf5 Bxf5 16. Bxc5 dxc5 {½-½ (79) Postny,E (2623)-Guseinov,G (2664) Chess.com INT 2019}) 11. Qc2 {[%emt 0:09:05]} a5 {[%emt 0:00:32]} 12. O-O-O {[%emt 0:10:44]} Bd7 {[%emt 0:05:45]} 13. Be2 {[%emt 0:04:01]} Qe7 {[%emt 0:01:55]} ({Reject} 13... Bxh3 14. g4 $11) 14. g4 {[%emt 0:15:09][%cal Bg3g4,Bg4g5][%mdl 32]} c6 {[%emt 0:06:09]} 15. g5 {[%emt 0:00:59]} Ne8 {[%emt 0:00:27]} 16. Ng4 {[%emt 0:06:58]} Nc7 {[%emt 0:05:45]} (16... f5 $14) 17. Qd2 {[%emt 0:20:32] [#] Black must now prevent Bxc5.} cxd5 {[%emt 0:10:08] And now ...d4 would win.} 18. cxd5 {[%emt 0:00:51]} (18. Bxc5 $14 dxc5 19. exd5) 18... N7a6 {[%emt 0:05:08]} (18... b5 $1 $15) 19. f3 $1 $14 {[%emt 0:00:07]} Rfc8 {[%emt 0:02:11] Black is now going downhill.} ({Black should try} 19... b5 $14) 20. Kb1 $16 {[%emt 0:00:10]} Rab8 {[%emt 0:03:36]} 21. Nb5 {[%emt 0:03:00] Threatens to win with Nf6+.} Bxb5 {[%emt 0:11:49]} (21... Qd8 $16) 22. Bxb5 $18 {[%emt 0:00:01]} Nc7 {[%emt 0:00:25]} 23. Qxa5 {[%emt 0:00:47]} Ra8 {[%emt 0:00:42]} 24. Qb6 {[%emt 0:01:51]} Nxb5 {[%emt 0:01:59]} 25. Qxb5 {[%emt 0:00:02]} Qd8 {[%emt 0:00:12]} 26. b3 {[%emt 0:07:42]} Ra5 {[%emt 0:03:13]} 27. Qb4 {[%emt 0:00:02] White is much more active.} Rca8 {[%emt 0:00:22]} 28. Rh2 {[%emt 0:00:02]} Qd7 {[%emt 0:00:59]} (28... b6 $142 29. h4 Qc7) 29. Rb2 {[%emt 0:00:58]} b6 {[%emt 0:01:02]} (29... Qe7 $142 30. Qd2 Nd7) 30. Qxb6 {[%emt 0:01:23]} R5a6 {[%emt 0:02:10]} 31. Qb4 {[%emt 0:00:15]} Qa7 {[%emt 0:00:41][%cal Ra6a2]} 32. Rdd2 {[%emt 0:00:24]} Ra5 {[%emt 0:01:24]} 33. Qc4 {[%emt 0:01:45] [#] aiming for b4. White is clearly winning.} Qe7 {[%emt 0:00:22]} 34. Rdc2 {[%emt 0:00:38]} Nd7 {[%emt 0:00:32]} 35. Qc7 {[%emt 0:00:20] Weighted Error Value: White=0.09 (flawless) /Black=0.26 (precise)} 1-0

[Event "US Masters 2022"]
[Site "Charlotte"]
[Date "2022.11.26"]
[Round "6.11"]
[White "Wang, Kevin"]
[Black "Negi, Parimarjan"]
[Result "1/2-1/2"]
[ECO "D37"]
[WhiteElo "2407"]
[BlackElo "2639"]
[Annotator "TA"]
[PlyCount "76"]
[EventDate "2022.11.23"]
[EventType "swiss"]
[EventCountry "USA"]
[SourceTitle "playchess.com"]
[Source "ChessBase"]
[SourceQuality "1"]
[TimeControl "5400+30"]

{[%evp 19,76,20,35,32,62,46,47,62,45,42,49,56,69,59,93,90,93,81,97,37,28,37,39,35,39,21,28,0,0,0,0,0,3,0,0,0,0,0,0,0,0,0,0,0,0,0,0,0,0,0,0,0,0,0,0,0,0,0,0]} 1. d4 {[%emt 0:03:34]} d5 {[%emt 0:01:16]} 2. c4 {[%emt 1:27:56]} e6 {[%emt 0:00:50]} 3. Nc3 {[%emt 0:00:00]} Nf6 {[%emt 0:03:13]} 4. Nf3 {[%emt 0:00:00]} Be7 {[%emt 0:02:55]} 5. Bf4 {[%emt 0:00:00]} O-O {[%emt 0:00:18]} 6. e3 {[%emt 0:00:00]} c5 {[%emt 0:02:21]} 7. dxc5 {[%emt 0:00:00]} Bxc5 {[%emt 0:00:49]} 8. Qc2 {[%emt 0:00:00]} Nc6 {[%emt 0:00:31]} 9. Rd1 {[%emt 0:00:00]} Qa5 {[%emt 0:09:12]} 10. a3 {[%emt 0:00:00]} Be7 {[%emt 0:03:27]} 11. Be2 $1 {[%emt 0:00:00] 11.Be2 scores better than 11.Nd2. D37: Queen's Gambit Declined: 5 Bf4.} dxc4 {[%emt 0:05:13]} 12. Bxc4 {[%emt 0:00:00]} e5 {[%emt 0:01:31]} 13. Bg3 {[%emt 0:00:00] White is slightly better.} Bg4 {[%emt 0:00:32] [#] White must now prevent ...e4.} 14. O-O {[%emt 0:00:00]} Rac8 {[%emt 0:01:03]} 15. h3 {[%emt 0:00:00]} Bh5 {[%emt 0:09:08][%cal Oe5e4]} 16. Nd5 {[%emt 0:00:00] White is more active.} Bxf3 {[%emt 0:18:11]} 17. gxf3 {[%emt 0:00:00] [#] b4 is the strong threat.} Nxd5 {[%emt 0:04:03]} 18. Rxd5 {[%emt 0:00:00]} Qb6 {[%emt 0:00:05] [#]} 19. Qb3 $146 {[%emt 0:00:00]} ({Don't play} 19. Bxe5 $6 Na5 20. Bd4 Rxc4 $11) ({White should play} 19. b4 $16) ({Predecessor:} 19. b4 Bf6 20. Qe4 Rfd8 21. Rb5 Qc7 22. Rc1 Qe7 23. Kg2 g6 24. Bd5 a6 25. Rbc5 Kg7 26. Bxc6 bxc6 27. Rxc6 Rxc6 28. Rxc6 {1-0 (28) De,G (2284)-Kobese,W ICCF email 2019}) 19... Qxb3 $14 {[%emt 0:03:43]} 20. Bxb3 {[%emt 0:00:00]} Rfd8 {[%emt 0:00:19] Prevents Rd7.} 21. Rfd1 {[%emt 0:00:00]} (21. Bxe5 $2 {is the wrong capture.} Rxd5 22. Bxd5 Nxe5 $19) 21... Rxd5 {[%emt 0:00:29]} 22. Rxd5 {[%emt 0:00:00]} Rd8 {[%emt 0:00:25] Against Rd7} 23. Rxd8+ {[%emt 0:00:00]} (23. Bxe5 $2 {loses.} Rxd5 24. Bxd5 Nxe5 $19) (23. Rb5 $5 {[%cal Rb5b7]}) 23... Bxd8 $11 {[%emt 0:00:20][%mdl 4096] Endgame KBB-KBN. The position is equal.} 24. Bd5 {[%emt 0:00:00]} Bc7 {[%emt 0:03:53]} 25. Kf1 {[%emt 0:00:00]} Kf8 {[%emt 0:00:19]} 26. Ke2 {[%emt 0:00:00]} Ke7 {[%emt 0:02:26]} 27. f4 {[%emt 0:00:00]} exf4 {[%emt 0:02:40]} 28. Bxf4 {[%emt 0:00:00]} Bxf4 {[%emt 0:00:09]} 29. exf4 {[%emt 0:00:00]} f6 {[%emt 0:04:05]} 30. Bxc6 {[%emt 0:00:00]} bxc6 {[%emt 0:00:06] KP-KP} 31. Kd3 {[%emt 0:00:00]} Ke6 {[%emt 0:06:52]} 32. Ke4 {[%emt 0:00:00]} g6 {[%emt 0:04:43] Inhibits f5+.} 33. b4 {[%emt 0:00:00]} h5 {[%emt 0:03:27]} 34. h4 {[%emt 0:00:00][%cal Of4f5] Strongly threatening f5+!} Kd6 {[%emt 0:03:07]} 35. Kd4 {[%emt 0:00:00]} Ke6 {[%emt 0:01:04] And now ...Kf5 would win.} 36. Ke4 {[%emt 0:00:00][%cal Of4f5] Hoping for f5+!} Kd7 {[%emt 0:01:37]} 37. Kd3 {[%emt 0:00:15]} Kd6 {[%emt 0:01:10]} 38. Kd4 {[%emt 0:00:23]} Ke6 {[%emt 0:00:10] Weighted Error Value: White=0.05 (flawless) /Black=0.04 (flawless)} 1/2-1/2

[Event "US Masters 2022"]
[Site "Charlotte"]
[Date "2022.11.26"]
[Round "6.12"]
[White "Williams, Justus"]
[Black "Theodorou, Nikolas"]
[Result "1/2-1/2"]
[ECO "E64"]
[WhiteElo "2395"]
[BlackElo "2598"]
[Annotator "TA"]
[PlyCount "92"]
[EventDate "2022.11.23"]
[EventType "swiss"]
[EventCountry "USA"]
[SourceTitle "playchess.com"]
[Source "ChessBase"]
[SourceQuality "1"]
[TimeControl "5400+30"]

{[%evp 15,92,14,7,12,15,9,11,10,8,0,4,0,0,5,2,3,16,0,0,0,0,0,0,0,0,0,0,-19,-23,-51,-51,-49,-13,-146,-135,-119,-116,-208,-198,-200,-179,-262,-156,-185,-184,-177,-181,-186,-188,-187,-181,-156,-142,-144,-150,-295,-279,-282,-267,-347,-347,-355,-347,-315,-76,-44,-74,-78,0,0,0,0,0,0,0,0,0,0,0]} 1. d4 {[%emt 0:07:18]} Nf6 {[%emt 0:01:14]} 2. Nf3 {[%emt 0:00:17]} g6 {[%emt 0:00:45]} 3. c4 {[%emt 0:00:13]} Bg7 {[%emt 0:00:06]} 4. Nc3 {[%emt 0:00:08]} d6 {[%emt 0:00:46]} 5. g3 {[%emt 0:00:39]} O-O {[%emt 0:00:08]} 6. Bg2 {[%emt 0:00:06]} c5 {[%emt 0:00:34]} 7. dxc5 {[%emt 0:02:30]} dxc5 {[%emt 0:00:08]} 8. Qxd8 {[%emt 0:00:21]} Rxd8 {[%emt 0:00:03]} 9. Be3 {[%emt 0:00:35] E64: King's Indian: Fianchetto: 6...c5 7 d5.} Nc6 $1 {[%emt 0:12:19][%mdl 4] outshines the older 9...Na6.} 10. Bxc5 {[%emt 0:05:26]} Be6 {[%emt 0:03:12]} 11. Nd2 {[%emt 0:01:44]} Nd7 {[%emt 0:00:05][%cal Bf6d7,Bd7b6,Bb6a4][%mdl 32]} 12. Ba3 {[%emt 0:04:22]} Nb6 {[%emt 0:04:19] Prevents Nd5.} 13. c5 {[%emt 0:20:35] [#]} Bxc3 $146 {[%emt 0:07:44]} ({Predecessor:} 13... Nc4 14. Nxc4 Bxc4 15. O-O Rd7 16. Rfd1 Rad8 17. e3 Rxd1+ 18. Rxd1 Rxd1+ 19. Nxd1 Bxa2 {½-½ (36) Hodovsky,J (2129)-Skacelik,P (2185) Czech Republic 2014}) 14. bxc3 {[%emt 0:00:02]} Na4 {[%emt 0:02:40]} 15. Rc1 {[%emt 0:03:13]} Bd5 {[%emt 0:09:20]} (15... Bxa2 16. c4 $16) 16. Bxd5 {[%emt 0:01:26]} Rxd5 {[%emt 0:00:03]} 17. Nb3 {[%emt 0:00:14]} Rad8 {[%emt 0:02:56][%cal Oa4c3]} 18. O-O {[%emt 0:01:24]} f6 {[%emt 0:02:05]} 19. f4 {[%emt 0:01:45]} Kf7 {[%emt 0:02:51]} 20. Kg2 {[%emt 0:02:34]} e5 {[%emt 0:01:57]} 21. fxe5 {[%emt 0:03:26]} Rxe5 {[%emt 0:00:52]} 22. Rf4 {[%emt 0:00:24]} Rxe2+ {[%emt 0:05:54]} 23. Kg1 $1 {[%emt 0:03:08]} Nb2 {[%emt 0:22:55]} 24. Kf1 {[%emt 0:19:49]} (24. Nd4 $11 {keeps the balance.} Nxd4 25. Rxd4 Rxd4 26. cxd4) 24... Rxh2 $17 {[%emt 0:01:24]} 25. Kg1 {[%emt 0:00:02]} Re2 {[%emt 0:00:22] aiming for ...Nd3.} 26. Kf1 {[%emt 0:00:27]} (26. Nd4 $17 {is a better defense.} Nxd4 27. Rxd4 Rxd4 28. cxd4) 26... Rde8 $19 {[%emt 0:03:42]} 27. Nd4 {[%emt 0:00:42]} Rd2 {[%emt 0:04:25] Strongly threatening ...Nd3.} 28. Nb5 {[%emt 0:02:52]} (28. Bxb2 $142 Rxb2 29. Nxc6 bxc6 30. Rd1) 28... Kg7 {[%emt 0:02:49]} (28... g5 $19 29. Nd6+ {[#]} Rxd6 $1 {[%mdl 512]} 30. cxd6 gxf4 31. Bxb2 fxg3) 29. Nd6 $17 {[%emt 0:00:09]} Ree2 $36 {[%emt 0:00:22][%mdl 2048] Black is really pushing.} 30. Ne4 {[%emt 0:00:45] [#]} Nd3 $1 {[%emt 0:02:23][%csl LRa2,LRc1,LRf4]} 31. Nxd2 {[%emt 0:01:29]} Rxd2 {[%emt 0:00:25]} ({Much less strong is} 31... Nxf4 32. Rc2 $16) 32. Rb1 {[%emt 0:00:34]} Nxf4 {[%emt 0:00:21] Pair of Knights!} ({Don't play} 32... Rxa2 33. Rxb7+ Kh6 34. Rxf6 $16) 33. Rxb7+ {[%emt 0:00:03]} Kg8 {[%emt 0:03:29]} 34. gxf4 {[%emt 0:02:23]} Rxa2 {[%emt 0:00:03]} 35. Rc7 {[%emt 0:00:42]} (35. Bb2 $17) 35... Rxa3 $19 {[%emt 0:01:15]} 36. Rxc6 {[%emt 0:00:01]} Rxc3 {[%emt 0:00:24][%mdl 4096] Endgame KR-KR} 37. Rc7 {[%emt 0:00:11][%cal Of1e2]} Rc2 {[%emt 0:03:16]} 38. Ke1 {[%emt 0:00:29][%cal Oe1d1]} h5 {[%emt 0:00:36]} 39. Kd1 {[%emt 0:00:01]} Ra2 {[%emt 0:00:44]} (39... Rc4 $19 40. Ke2 h4) 40. c6 $17 {[%emt 0:01:48] Hoping for Rc8+.} Ra6 {[%emt 0:00:32]} 41. Ke2 {[%emt 0:00:35]} Kf8 {[%emt 0:00:40]} ({Black should play} 41... h4 $17 {And now ...h3 would win.} 42. Rc8+ Kg7 43. Rc7+ Kf8) 42. Ke3 $11 {[%emt 0:02:49] The position is equal.} h4 {[%emt 0:00:22]} 43. Kd4 {[%emt 0:00:50] Threatens to win with Kd5.} h3 {[%emt 0:00:01]} 44. Kd5 {[%emt 0:00:21] Black must now prevent Rh7.} Kg8 {[%emt 0:01:23] Inhibits Rh7.} 45. Rc8+ {[%emt 0:00:03]} Kg7 {[%emt 0:00:13] ( -> ...h2)} 46. c7 {[%emt 0:00:27][%cal Oc8g8] Threatening mate with Rg8+!} Ra5+ {[%emt 0:00:33] And White is the lucky defender.   Weighted Error Value: White=0.19 (very precise) /Black=0.18 (very precise)} 1/2-1/2

[Event "US Masters 2022"]
[Site "Charlotte"]
[Date "2022.11.26"]
[Round "6.13"]
[White "Gazik, Viktor"]
[Black "Hilby, Craig"]
[Result "1/2-1/2"]
[ECO "C11"]
[WhiteElo "2564"]
[BlackElo "2411"]
[Annotator "TA"]
[PlyCount "55"]
[EventDate "2022.11.23"]
[EventType "swiss"]
[EventCountry "USA"]
[SourceTitle "playchess.com"]
[Source "ChessBase"]
[SourceQuality "1"]
[TimeControl "5400+30"]

{[%evp 18,55,18,10,21,15,14,17,8,0,0,0,0,0,11,0,9,8,13,12,13,10,13,6,14,11,6,11,6,8,9,9,7,7,7,0,0,0,0,0]} 1. e4 {[%emt 0:07:09]} e6 {[%emt 0:00:31]} 2. d4 {[%emt 0:02:45]} d5 {[%emt 0:00:29]} 3. Nc3 {[%emt 0:00:13]} Nf6 {[%emt 0:00:21]} 4. e5 {[%emt 0:01:17]} Nfd7 {[%emt 0:00:09]} 5. Nf3 {[%emt 0:06:51]} c5 {[%emt 0:05:51]} 6. dxc5 {[%emt 0:00:05]} Bxc5 {[%emt 0:02:12]} 7. Bd3 {[%emt 0:00:07]} Nc6 {[%emt 0:01:15]} 8. Bf4 {[%emt 0:02:02][%cal Bc1f4,Bf4g3,Bg3d6][%mdl 32]} f6 {[%emt 0:06:26]} 9. exf6 {[%emt 0:04:55]} Qxf6 {[%emt 0:00:38]} 10. Bg3 {[%emt 0:01:45] The position is equal.} O-O {[%emt 0:15:05] C11: French: Classical System: 4 e5 and 4 Bg5 dxe4.} 11. O-O {[%emt 0:00:09]} Nd4 {[%emt 0:04:02]} 12. Nxd4 {[%emt 0:01:38]} Bxd4 {[%emt 0:01:55]} 13. Qe2 {[%emt 0:20:29]} ({Don't play} 13. Qh5 g6 14. Qe2 Nc5) 13... Nc5 {[%emt 0:15:06] [#]} 14. Bd6 $146 {[%emt 0:16:21]} ({Predecessor:} 14. Rad1 Bd7 15. Bb5 Bxc3 16. Bxd7 Nxd7 17. bxc3 Rac8 18. Rd3 Nc5 19. Rf3 Qe7 20. Be5 Rxf3 21. Qxf3 {0-1 (40) Baker,C (2272)-Buchenau,F (2269) Chess.com INT 2022}) 14... Nxd3 {[%emt 0:06:10]} 15. cxd3 {[%emt 0:00:06]} Re8 {[%emt 0:07:30]} 16. Nb5 {[%emt 0:19:34][%cal Bc3b5,Bb5d4,Bd4f3][%mdl 32]} ({Much worse is} 16. Nxd5 Qd8 17. Nc7 Qxd6 $17) 16... e5 $1 {[%emt 0:04:33] [#] Hoping for ...Bd7.} 17. Rae1 {[%emt 0:05:36]} Bd7 {[%emt 0:02:04]} 18. Nxd4 {[%emt 0:01:16][%cal Rd6e5]} Qxd6 {[%emt 0:00:07]} 19. Nf3 {[%emt 0:00:02][%cal Rf3e5]} Bg4 {[%emt 0:01:56]} 20. h3 {[%emt 0:00:02]} Bh5 {[%emt 0:04:03]} 21. g4 {[%emt 0:01:28]} Bg6 {[%emt 0:00:05]} 22. Nxe5 {[%emt 0:00:41] Black must now prevent f4.} Bxd3 $1 {[%emt 0:00:37][%mdl 64] [#]} 23. Qxd3 {[%emt 0:00:01]} Rxe5 {[%emt 0:00:09]} 24. Rxe5 {[%emt 0:06:22]} Qxe5 $11 {[%emt 0:00:10] KQR-KQR} 25. Rd1 {[%emt 0:00:07]} Rd8 {[%emt 0:00:17]} 26. Qd4 {[%emt 0:01:10]} Qxd4 {[%emt 0:02:37]} 27. Rxd4 {[%emt 0:00:03]} Kf7 {[%emt 0:00:14]} 28. f4 {[%emt 0:01:11] A balanced but interesting game.   Weighted Error Value: White=0.02 (flawless) /Black=0.01 (flawless)} 1/2-1/2

[Event "US Masters 2022"]
[Site "Charlotte"]
[Date "2022.11.26"]
[Round "6.14"]
[White "Jacobson, Brandon"]
[Black "Siddharth, Jagadeesh"]
[Result "1-0"]
[ECO "A17"]
[WhiteElo "2551"]
[BlackElo "2407"]
[Annotator "TA"]
[PlyCount "75"]
[EventDate "2022.11.23"]
[EventType "swiss"]
[EventCountry "USA"]
[SourceTitle "playchess.com"]
[Source "ChessBase"]
[SourceQuality "1"]
[TimeControl "5400+30"]

{[%evp 9,75,-3,0,0,0,0,-7,0,-8,0,16,13,15,7,7,16,6,14,32,10,25,22,23,13,41,-30,15,-2,27,18,39,49,66,62,62,64,75,14,14,14,18,14,12,0,28,40,31,32,31,34,56,46,119,126,123,125,343,341,331,314,1089,1108,1110,1061,977,924,1197,1101]} 1. Nf3 {[%emt 0:14:40]} d5 {[%emt 0:00:31]} 2. e3 {[%emt 0:00:17]} Nf6 {[%emt 0:00:11]} 3. c4 {[%emt 0:00:10]} e6 {[%emt 0:00:13]} 4. Nc3 {[%emt 0:00:10]} b6 {[%emt 0:00:08]} 5. cxd5 {[%emt 0:02:29]} exd5 {[%emt 0:00:08]} 6. b4 {[%emt 0:00:12] A17: English Opening: 1...Nf6 with ...Bb4.} c6 {[%emt 0:09:03] [#]} 7. a3 $146 {[%emt 0:03:05]} ({Predecessor:} 7. b5 c5 8. d4 Be7 9. Be2 O-O 10. O-O Bb7 11. a4 Nbd7 12. Bb2 Re8 13. Ne5 Nxe5 14. dxe5 {1-0 (45) Sunilduth Lyna,N (2618)-Vetoshko,V (2523) Chess.com INT 2020}) 7... Bd6 {[%emt 0:00:16]} 8. g3 {[%emt 0:04:07] The position is equal.} O-O {[%emt 0:02:26]} 9. Bg2 {[%emt 0:00:23]} Ba6 {[%emt 0:10:54]} 10. d3 {[%emt 0:13:47]} Nbd7 {[%emt 0:00:39]} 11. O-O {[%emt 0:00:30]} Ne5 {[%emt 0:01:09]} 12. Nxe5 {[%emt 0:01:09]} Bxe5 {[%emt 0:00:08]} 13. Bb2 {[%emt 0:00:03]} Rc8 {[%emt 0:01:54]} 14. Na4 {[%emt 0:02:55][%cal Bc3a4,Ba4b2,Bb2d3,Bd3e5][%mdl 32]} Qe7 {[%emt 0:01:20]} 15. Rc1 {[%emt 0:08:42]} Rfd8 {[%emt 0:02:38]} 16. Re1 {[%emt 0:04:12]} h6 {[%emt 0:08:06]} 17. Re2 {[%emt 0:00:52]} (17. Nc3 $14) 17... Qe6 {[%emt 0:03:11]} 18. Rec2 {[%emt 0:03:04]} Bxb2 {[%emt 0:00:09]} 19. Nxb2 {[%emt 0:00:10]} Bb7 {[%emt 0:03:51]} 20. d4 {[%emt 0:00:32]} Ra8 {[%emt 0:08:00]} 21. Nd3 {[%emt 0:02:16]} a5 {[%emt 0:01:59]} 22. Ne5 {[%emt 0:09:34][%cal Re5c6]} Rdc8 {[%emt 0:00:22]} 23. Qd3 {[%emt 0:08:54] White is more active.} ({Better is} 23. b5 $16 {[%cal Rb5c6]} c5 24. dxc5 bxc5 25. Nd3) 23... axb4 {[%emt 0:01:06]} 24. axb4 {[%emt 0:00:02]} Nd7 {[%emt 0:00:31]} 25. Nxd7 {[%emt 0:00:04]} Qxd7 {[%emt 0:00:08]} 26. e4 {[%emt 0:00:06]} Qe7 {[%emt 0:10:59]} 27. exd5 {[%emt 0:05:13]} cxd5 {[%emt 0:00:21]} 28. b5 {[%emt 0:00:39]} Qd7 {[%emt 0:02:44]} 29. h4 {[%emt 0:01:36]} Rxc2 {[%emt 0:05:01]} 30. Rxc2 {[%emt 0:00:04]} Qd6 {[%emt 0:06:29]} (30... g6 $14) 31. Bh3 $16 {[%emt 0:00:58]} g6 {[%emt 0:01:32]} 32. Qc3 {[%emt 0:02:28] aiming for Qc7.} Qf6 $2 {[%emt 0:01:18] [#] This move loses the game for Black.} (32... Re8 $16 {keeps fighting.}) 33. Qc7 $18 {[%emt 0:08:27]} Ra1+ {[%emt 0:01:23]} 34. Kh2 {[%emt 0:00:12]} Qxd4 $2 {[%emt 0:03:38]} (34... Ba8 35. Qd7 Kg7) 35. Be6 {[%emt 0:02:56] White is clearly winning.} Qf6 {[%emt 0:04:12]} 36. Bxf7+ {[%emt 0:00:06]} Qxf7 {[%emt 0:00:17] [#]} 37. Qb8+ $1 {[%emt 0:00:04]} ({Not} 37. Qxf7+ Kxf7 38. Rc7+ Kf6 39. Rxb7 d4 $11) 37... Qf8 {[%emt 0:00:22]} 38. Qxb7 {[%emt 0:00:06] Weighted Error Value: White=0.10 (very precise) /Black=0.22 (precise)} 1-0